bitfinex-derivatives/quotes_SOLF0:USTF0_20251025
["timestamp","ask_amount","ask_price","bid_price","bid_amount"]
[1761401717303,4.12839765,192.26,192.21,2.7]
[1761401717607,4.82564885,192.31,192.21,2.7]
[1761401717803,4.12897899,192.3,192.21,2.7]
[1761401718004,4.12897899,192.29,192.21,2.7]
[1761401718204,4.12897899,192.28,192.21,2.7]
[1761401718404,4.12897899,192.27,192.21,2.7]
[1761401718605,4.12897899,192.26,192.21,2.7]
[1761401718806,4.82564885,192.31,192.21,2.7]
[1761401719008,4.12909347,192.3,192.21,2.7]
[1761401719194,4.12909347,192.29,192.21,2.7]
[1761401719399,4.12909347,192.28,192.21,2.7]
[1761401719606,4.12909347,192.27,192.21,2.7]
[1761401719806,4.12909347,192.26,192.21,2.7]
[1761401719998,4.82564885,192.31,192.21,2.7]
[1761401720198,8.95521882,192.3,192.21,2.7]
[1761401720402,4.12956997,192.29,192.21,2.7]
[1761401720602,4.12956997,192.28,192.21,2.7]
[1761401720803,4.12956997,192.27,192.21,2.7]
[1761401721101,4.12956997,192.26,192.21,2.7]
[1761401721303,4.82564885,192.3,192.21,2.7]
[1761401721611,4.13137497,192.29,192.21,2.7]
[1761401721906,4.13137497,192.28,192.21,2.7]
[1761401722106,4.13137497,192.27,192.21,2.7]
[1761401722301,4.13137497,192.26,192.21,2.7]
[1761401722502,4.82564885,192.3,192.21,2.7]
[1761401722802,4.13204682,192.29,192.21,2.7]
[1761401722997,4.13204682,192.28,192.21,2.7]
[1761401723209,4.13204682,192.27,192.21,2.7]
[1761401723508,4.13204682,192.26,192.21,2.7]
[1761401723706,4.82564885,192.3,192.21,2.7]
[1761401724006,4.13281713,192.29,192.21,2.7]
[1761401724207,4.13281713,192.28,192.21,2.7]
[1761401724395,4.13281713,192.27,192.21,2.7]
[1761401724594,4.13281713,192.26,192.21,2.7]
[1761401724798,4.82564885,192.3,192.21,2.7]
[1761401724799,4.13281713,192.25,192.21,2.7]
[1761401725004,4.82564885,192.3,192.21,2.7]
[1761401725202,4.13420824,192.29,192.21,2.7]
[1761401725403,4.13420824,192.28,192.21,2.7]
[1761401725601,4.13420824,192.27,192.21,2.7]
[1761401725795,4.13420824,192.26,192.21,2.7]
[1761401726000,4.13420824,192.25,192.21,2.7]
[1761401726307,4.82564885,192.29,192.21,2.7]
[1761401726509,4.13609603,192.28,192.21,2.7]
[1761401726701,4.13609603,192.27,192.21,2.7]
[1761401726900,4.13609603,192.26,192.21,2.7]
[1761401727108,4.13609603,192.25,192.21,2.7]
[1761401727308,4.82564885,192.29,192.21,2.7]
[1761401727606,4.13708174,192.28,192.21,2.7]
[1761401727807,4.13708174,192.27,192.21,2.7]
[1761401727996,4.13708174,192.26,192.21,2.7]
[1761401728199,4.13708174,192.25,192.21,2.7]
[1761401728508,4.82564885,192.29,192.21,2.7]
[1761401728696,4.13850267,192.28,192.21,2.7]
[1761401728897,4.13850267,192.27,192.21,2.7]
[1761401729101,4.13850267,192.26,192.21,2.7]
[1761401729308,4.13850267,192.25,192.21,2.7]
[1761401729509,4.82564885,192.29,192.21,2.7]
[1761401729709,4.1386346,192.28,192.21,2.7]
[1761401729909,4.1386346,192.27,192.21,2.7]
[1761401730205,4.1386346,192.26,192.21,2.7]
[1761401730406,4.1386346,192.25,192.21,2.7]
[1761401730610,4.82564885,192.29,192.21,2.7]
[1761401730804,4.13901032,192.28,192.21,2.7]
[1761401731004,4.13901032,192.27,192.21,2.7]
[1761401731308,4.13901032,192.26,192.21,2.7]
[1761401731510,4.13901032,192.25,192.21,2.7]
[1761401731712,4.82564885,192.29,192.21,2.7]
[1761401731910,4.13932243,192.28,192.21,2.7]
[1761401732111,4.13932243,192.27,192.21,2.7]
[1761401732302,4.13932243,192.26,192.21,2.7]
[1761401732504,4.13932243,192.25,192.21,2.7]
[1761401732705,4.13932243,192.24,192.21,2.7]
[1761401732905,4.82564885,192.28,192.21,2.7]
[1761401733108,4.12143036,192.27,192.21,2.7]
[1761401733309,4.12143036,192.26,192.21,2.7]
[1761401733508,4.12143036,192.25,192.21,2.7]
[1761401733811,4.12143036,192.24,192.21,2.7]
[1761401734011,4.82564885,192.28,192.21,2.7]
[1761401734212,4.12147966,192.27,192.21,2.7]
[1761401734407,4.12147966,192.26,192.21,2.7]
[1761401734607,4.12147966,192.25,192.21,2.7]
[1761401734815,4.12147966,192.24,192.21,2.7]
[1761401735013,4.82564885,192.28,192.21,2.7]
[1761401735214,4.12119064,192.27,192.21,2.7]
[1761401735513,4.12119064,192.26,192.21,2.7]
[1761401735718,4.12119064,192.25,192.21,2.7]
[1761401735909,4.12119064,192.24,192.21,2.7]
[1761401736208,4.82564885,192.28,192.21,2.7]
[1761401736405,4.1210309,192.27,192.21,2.7]
[1761401736606,4.1210309,192.26,192.21,2.7]
[1761401736808,4.1210309,192.25,192.21,2.7]
[1761401737009,4.1210309,192.24,192.21,2.7]
[1761401737211,4.82564885,192.28,192.21,2.7]
[1761401737410,4.12095564,192.27,192.21,2.7]
[1761401737710,4.12095564,192.26,192.21,2.7]
[1761401738013,4.12095564,192.25,192.21,2.7]
[1761401738211,4.12095564,192.24,192.21,2.7]
[1761401738414,4.82564885,192.29,192.21,2.7]
[1761401738611,4.10302835,192.28,192.21,2.7]
[1761401738807,4.10302835,192.27,192.21,2.7]
[1761401739009,4.10302835,192.26,192.21,2.7]
[1761401739205,4.10302835,192.25,192.21,2.7]
[1761401739407,4.10302835,192.24,192.21,2.7]
[1761401739616,4.82564885,192.29,192.21,2.7]
[1761401739814,4.10255349,192.28,192.21,2.7]
[1761401740012,4.10255349,192.27,192.21,2.7]
[1761401740212,4.10255349,192.26,192.21,2.7]
[1761401740406,4.10255349,192.25,192.21,2.7]
[1761401740607,4.10255349,192.24,192.21,2.7]
[1761401740902,4.82564885,192.29,192.21,2.7]
[1761401741100,4.10248773,192.28,192.21,2.7]
[1761401741311,4.10248773,192.27,192.21,2.7]
[1761401741508,4.10248773,192.26,192.21,2.7]
[1761401741708,4.10248773,192.25,192.21,2.7]
[1761401741908,4.10248773,192.24,192.21,2.7]
[1761401742116,4.82564885,192.29,192.21,2.7]
[1761401742311,4.10201951,192.28,192.21,2.7]
[1761401742516,4.10201951,192.27,192.21,2.7]
[1761401742717,4.10201951,192.26,192.21,2.7]
[1761401742914,4.10201951,192.25,192.21,2.7]
[1761401743119,4.10201951,192.24,192.21,2.7]
[1761401743306,4.82564885,192.28,192.21,2.7]
[1761401743514,4.08398966,192.27,192.21,2.7]
[1761401743711,4.82564885,192.28,192.21,2.7]
[1761401743712,4.08398966,192.26,192.21,2.7]
[1761401743913,4.08398966,192.25,192.21,2.7]
[1761401744213,4.08398966,192.24,192.21,2.7]
[1761401744409,4.82564885,192.28,192.21,2.7]
[1761401744611,4.08386917,192.27,192.21,2.7]
[1761401744819,4.08386917,192.26,192.21,2.7]
[1761401745020,4.08386917,192.25,192.21,2.7]
[1761401745222,4.82564885,192.29,192.21,2.7]
[1761401745421,4.08452677,192.28,192.21,2.7]
[1761401745612,4.08452677,192.27,192.21,2.7]
[1761401745922,4.08452677,192.26,192.21,2.7]
[1761401746123,4.08452677,192.25,192.21,2.7]
[1761401746322,4.82564885,192.29,192.21,2.7]
[1761401746520,8.91031595,192.28,192.21,2.7]
[1761401746730,4.0846671,192.27,192.21,2.7]
[1761401747022,4.0846671,192.26,192.21,2.7]
[1761401747224,4.0846671,192.25,192.21,2.7]
[1761401747523,4.0846671,192.24,192.21,2.7]
[1761401747725,4.82564885,192.29,192.21,2.7]
[1761401747922,4.08489973,192.28,192.21,2.7]
[1761401748223,4.08489973,192.27,192.21,2.7]
[1761401748422,4.08489973,192.26,192.21,2.7]
[1761401748623,4.08489973,192.25,192.21,2.7]
[1761401748823,4.08489973,192.24,192.21,2.7]
[1761401749026,4.82564885,192.29,192.21,2.7]
[1761401749325,4.06573255,192.28,192.21,2.7]
[1761401749515,4.06573255,192.27,192.21,2.7]
[1761401749718,4.06573255,192.26,192.21,2.7]
[1761401749920,4.06573255,192.25,192.21,2.7]
[1761401750128,4.06573255,192.24,192.21,2.7]
[1761401750425,4.82564885,192.29,192.21,2.7]
[1761401750426,3.26653015,192.28,192.21,2.7]
[1761401750626,4.04849566,192.27,192.21,2.7]
[1761401750926,4.04849566,192.26,192.21,2.7]
[1761401751126,4.04849566,192.25,192.21,2.7]
[1761401751325,4.04849566,192.24,192.21,2.7]
[1761401751526,4.82564885,192.28,192.21,2.7]
[1761401751826,4.04870431,192.27,192.21,2.7]
[1761401752026,4.04870431,192.26,192.21,2.7]
[1761401752325,4.04870431,192.25,192.21,2.7]
[1761401752525,4.04870431,192.24,192.21,2.7]
[1761401752730,4.82564885,192.28,192.21,2.7]
[1761401752928,4.0485647,192.27,192.21,2.7]
[1761401753116,4.0485647,192.26,192.21,2.7]
[1761401753320,4.0485647,192.25,192.21,2.7]
[1761401753521,4.0485647,192.24,192.21,2.7]
[1761401753722,4.82564885,192.28,192.21,2.7]
[1761401753924,4.0483329,192.27,192.21,2.7]
[1761401754126,4.0483329,192.26,192.21,2.7]
[1761401754326,4.0483329,192.25,192.21,2.7]
[1761401754524,4.0483329,192.24,192.21,2.7]
[1761401754726,4.82564885,192.28,192.21,2.7]
[1761401754922,4.04790403,192.27,192.21,2.7]
[1761401755122,4.04790403,192.26,192.21,2.7]
[1761401755319,4.04790403,192.25,192.21,2.7]
[1761401755522,4.04790403,192.24,192.21,2.7]
[1761401755732,3.26569767,192.28,192.21,2.7]
[1761401755930,4.0301992,192.27,192.21,2.7]
[1761401756122,4.0301992,192.26,192.21,2.7]
[1761401756323,4.03015993,192.25,192.21,2.7]
[1761401756531,4.03015993,192.24,192.21,2.7]
[1761401756830,3.26569767,192.28,192.21,2.7]
[1761401757022,4.03016011,192.27,192.21,2.7]
[1761401757218,4.03016011,192.26,192.21,2.7]
[1761401757422,4.03016011,192.25,192.21,2.7]
[1761401757625,4.03016011,192.24,192.21,2.7]
[1761401757919,3.26569767,192.28,192.21,2.7]
[1761401758123,4.03013019,192.27,192.21,2.7]
[1761401758331,4.03013019,192.26,192.21,2.7]
[1761401758630,4.03013019,192.25,192.21,2.7]
[1761401758824,4.03013019,192.24,192.21,2.7]
[1761401759025,3.26569767,192.28,192.21,2.7]
[1761401759228,4.03011403,192.27,192.21,2.7]
[1761401759426,4.03011403,192.26,192.21,2.7]
[1761401759722,4.03011403,192.25,192.21,2.7]
[1761401760026,4.03011403,192.24,192.21,2.7]
[1761401760226,3.26569767,192.28,192.21,2.7]
[1761401760426,4.03011927,192.27,192.21,2.7]
[1761401760627,4.03011927,192.26,192.21,2.7]
[1761401760832,4.03011927,192.25,192.21,2.7]
[1761401761031,4.03011927,192.24,192.21,2.7]
[1761401761232,3.26569767,192.28,192.21,2.7]
[1761401761428,4.03013673,192.27,192.23,2.74]
[1761401761634,4.03013673,192.26,192.23,2.74]
[1761401761833,3.266818,192.3,192.23,2.74]
[1761401762132,4.03077478,192.29,192.23,2.74]
[1761401762331,4.03077478,192.28,192.23,2.74]
[1761401762534,3.26664008,192.31,192.23,2.74]
[1761401762733,3.9766679,192.3,192.23,2.74]
[1761401762928,3.9766679,192.29,192.23,2.74]
[1761401763125,3.9766679,192.28,192.23,2.74]
[1761401763329,3.26664008,192.31,192.23,2.74]
[1761401763529,3.97616712,192.3,192.23,2.74]
[1761401763832,3.97616712,192.29,192.23,2.74]
[1761401764024,3.97616712,192.28,192.23,2.74]
[1761401764230,3.26664008,192.31,192.23,2.74]
[1761401764531,3.97573088,192.3,192.23,2.74]
[1761401764728,3.97573088,192.29,192.23,2.74]
[1761401764929,3.97573088,192.28,192.23,2.74]
[1761401765129,4.83642974,192.32,192.23,2.74]
[1761401765330,3.97608583,192.31,192.23,2.74]
[1761401765630,3.97608583,192.3,192.24,63.04]
[1761401765835,3.97608583,192.29,192.25,2.74]
[1761401766036,3.97608583,192.28,192.25,2.74]
[1761401766235,4.83642974,192.32,192.25,2.74]
[1761401766535,3.9753259,192.31,192.25,2.74]
[1761401766722,4.83642974,192.32,192.25,2.74]
[1761401766723,3.9753259,192.3,192.25,2.74]
[1761401766927,4.83642974,192.35,192.28,1.20561353]
[1761401767128,12.30442004,192.36,192.3,2.74]
[1761401767335,4.83642974,192.36,192.3,2.74]
[1761401768135,4.40336693,192.36,192.3,2.74]
[1761401768327,4.83642974,192.37,192.3,2.74]
[1761401768727,12.26435651,192.37,192.3,2.74]
[1761401768929,4.83642974,192.37,192.3,2.74]
[1761401769130,4.83642974,192.39,192.3,2.74]
[1761401769528,9.23788475,192.39,192.3,2.74]
[1761401769735,4.83642974,192.39,192.3,2.74]
[1761401770431,4.83642974,192.4,192.3,2.74]
[1761401770831,9.2336079,192.4,192.3,2.74]
[1761401771028,4.83642974,192.4,192.3,2.74]
[1761401771631,9.23375506,192.4,192.3,2.74]
[1761401771829,4.83642974,192.4,192.3,2.74]
[1761401772038,6.04204327,192.41,192.3,2.74]
[1761401772438,1.20561353,192.41,192.3,2.74]
[1761401775433,4.83642974,192.45,192.33,2.9]
[1761401775639,4.83642974,192.45,192.36,1.20561353]
[1761401775840,6.04204327,192.47,192.37,2.9]
[1761401776240,10.43052131,192.47,192.37,2.9]
[1761401776537,6.04204327,192.47,192.37,2.9]
[1761401777240,10.42790326,192.47,192.37,2.9]
[1761401777545,1.20561353,192.47,192.37,2.9]
[1761401780346,5.03363483,192.47,192.37,2.9]
[1761401780548,3.8280213,192.46,192.37,2.9]
[1761401780949,1.20561353,192.47,192.37,2.9]
[1761401783150,5.03363483,192.47,192.37,2.9]
[1761401783355,1.20561353,192.47,192.37,2.9]
[1761401787855,5.02642038,192.5,192.37,2.9]
[1761401788053,3.82080685,192.49,192.37,2.9]
[1761401788243,1.20561353,192.5,192.37,2.9]
[1761401791057,1.20561353,192.5,192.39,1.20561353]
[1761401791256,5.58966802,192.53,192.4,2.9]
[1761401791556,3.82080685,192.52,192.4,2.9]
[1761401791856,3.82080685,192.52,192.43,2.9]
[1761401792056,3.82080685,192.54,192.43,2.9]
[1761401792247,5.02642038,192.55,192.43,2.9]
[1761401794446,3.82080685,192.54,192.43,2.9]
[1761401795252,1.20561353,192.55,192.43,2.9]
[1761401795457,3.82080685,192.56,192.43,2.9]
[1761401795653,1.20561353,192.55,192.43,2.9]
[1761401796154,1.20561353,192.52,192.43,2.9]
[1761401796360,1.20561353,192.49,192.38,2.9]
[1761401797260,1.20561353,192.5,192.38,2.9]
[1761401800757,5.02642038,192.5,192.38,2.9]
[1761401800962,1.20561353,192.5,192.38,2.9]
[1761401805266,1.20561353,192.47,192.38,2.9]
[1761401807360,5.02000908,192.47,192.38,2.9]
[1761401807566,3.81439555,192.46,192.38,2.9]
[1761401807955,1.20561353,192.47,192.38,2.9]
[1761401808161,5.02000908,192.47,192.38,2.9]
[1761401808368,1.20561353,192.44,192.38,2.9]
[1761401810268,1.20561353,192.44,192.33,2.83]
[1761401810969,5.04010164,192.44,192.33,2.83]
[1761401811167,3.83448811,192.43,192.33,2.83]
[1761401812872,3.83448811,192.45,192.33,2.83]
[1761401813065,3.83448811,192.44,192.33,2.83]
[1761401813368,3.83448811,192.43,192.33,2.83]
[1761401813567,3.83448811,192.42,192.33,2.83]
[1761401813767,3.83448811,192.41,192.33,2.83]
[1761401814070,3.83448811,192.44,192.33,2.83]
[1761401814264,3.83448811,192.43,192.33,2.83]
[1761401814572,3.83448811,192.42,192.33,2.83]
[1761401814768,3.83448811,192.41,192.33,2.83]
[1761401814958,3.83448811,192.4,192.33,2.83]
[1761401815162,3.83448811,192.43,192.33,2.83]
[1761401815364,3.83448811,192.42,192.33,2.83]
[1761401815562,3.83448811,192.41,192.33,2.83]
[1761401815769,3.83448811,192.4,192.33,2.83]
[1761401815968,3.83448811,192.43,192.33,2.83]
[1761401816272,3.83448811,192.42,192.33,2.83]
[1761401816462,3.83448811,192.41,192.33,2.83]
[1761401816663,3.83448811,192.4,192.33,2.83]
[1761401816860,3.83448811,192.43,192.33,2.83]
[1761401817158,3.83448811,192.42,192.33,2.83]
[1761401817357,3.84477849,192.41,192.33,2.83]
[1761401817557,3.84477849,192.4,192.33,2.83]
[1761401817768,3.84477849,192.43,192.33,2.83]
[1761401817970,4.81836241,192.45,192.33,2.83]
[1761401817971,3.84477849,192.42,192.33,2.83]
[1761401818169,3.84477849,192.41,192.33,2.83]
[1761401818363,3.84477849,192.4,192.33,2.83]
[1761401818559,3.84477849,192.43,192.33,2.83]
[1761401818762,3.84477849,192.42,192.33,2.83]
[1761401818964,3.84477849,192.41,192.33,2.83]
[1761401819158,3.84477849,192.4,192.33,2.83]
[1761401819364,3.84477849,192.43,192.33,2.83]
[1761401819566,3.84477849,192.42,192.33,2.83]
[1761401819766,3.84477849,192.41,192.33,2.83]
[1761401819966,4.38993547,192.44,192.33,2.83]
[1761401820175,3.84533794,192.43,192.33,2.83]
[1761401820374,3.84533794,192.42,192.33,2.83]
[1761401820574,3.84533794,192.41,192.33,2.83]
[1761401820767,3.84533794,192.43,192.33,2.83]
[1761401820972,3.84533794,192.42,192.33,2.83]
[1761401821165,8.23639989,192.46,192.33,2.83]
[1761401821367,3.84533794,192.45,192.37,2.78]
[1761401821567,3.84533794,192.44,192.37,2.78]
[1761401821871,4.81836241,192.49,192.37,2.78]
[1761401821872,8.23687036,192.48,192.37,2.78]
[1761401822073,3.84533794,192.47,192.37,2.78]
[1761401822272,3.84533794,192.46,192.37,2.78]
[1761401822474,3.84533794,192.45,192.37,2.78]
[1761401822774,3.84533794,192.44,192.37,2.78]
[1761401822961,3.84533794,192.47,192.37,2.78]
[1761401823162,3.84533794,192.46,192.37,2.78]
[1761401823361,3.84533794,192.45,192.37,2.78]
[1761401823563,3.84533794,192.44,192.37,2.78]
[1761401823766,3.84533794,192.47,192.37,2.78]
[1761401823970,3.84533794,192.46,192.37,2.78]
[1761401824172,3.84533794,192.45,192.37,2.78]
[1761401824369,3.84533794,192.44,192.37,2.78]
[1761401824574,3.84533794,192.47,192.37,2.78]
[1761401824774,3.84533794,192.46,192.37,2.78]
[1761401824972,3.84533794,192.45,192.37,2.78]
[1761401825268,3.84533794,192.44,192.37,2.78]
[1761401825469,3.84533794,192.43,192.37,2.78]
[1761401825678,4.81836241,192.47,192.37,2.78]
[1761401825867,3.84618778,192.46,192.37,2.78]
[1761401826069,3.84618778,192.45,192.37,2.78]
[1761401826272,3.84618778,192.44,192.37,2.78]
[1761401826470,3.84618778,192.43,192.37,2.78]
[1761401826770,4.81836241,192.47,192.37,2.78]
[1761401826965,3.84621298,192.46,192.37,2.78]
[1761401827174,3.84621298,192.45,192.37,2.78]
[1761401827363,3.84621298,192.44,192.37,2.78]
[1761401827567,3.84621298,192.43,192.37,2.78]
[1761401827763,4.81836241,192.47,192.37,2.78]
[1761401827971,3.84622069,192.46,192.37,2.78]
[1761401828172,3.84622069,192.45,192.37,2.78]
[1761401828374,3.84622069,192.44,192.37,2.78]
[1761401828568,3.84622069,192.43,192.37,2.78]
[1761401828770,4.81836241,192.47,192.37,2.78]
[1761401828977,3.84640245,192.46,192.37,2.78]
[1761401829280,3.84640245,192.45,192.37,2.78]
[1761401829480,3.84640245,192.44,192.37,2.78]
[1761401829682,3.84640245,192.43,192.37,2.78]
[1761401829978,4.81836241,192.47,192.37,2.78]
[1761401830183,3.84748878,192.46,192.37,2.78]
[1761401830382,3.84748878,192.45,192.37,2.78]
[1761401830583,3.84748878,192.44,192.37,2.78]
[1761401830783,3.84728599,192.43,192.37,2.78]
[1761401831080,4.39207365,192.46,192.34,4.591767]
[1761401831274,8.66822636,192.45,192.34,2.71]
[1761401831587,8.23874749,192.44,192.34,2.71]
[1761401831770,3.84667384,192.43,192.34,2.71]
[1761401831976,3.84667384,192.42,192.34,2.71]
[1761401832179,9.21362617,192.44,192.34,2.71]
[1761401832180,3.84667384,192.41,192.34,2.71]
[1761401832385,3.84667384,192.4,192.34,2.71]
[1761401832677,4.82155252,192.44,192.34,2.71]
[1761401832877,3.99637902,192.43,192.34,2.71]
[1761401833180,3.99637902,192.42,192.34,2.71]
[1761401833381,3.99637902,192.41,192.34,2.71]
[1761401833580,3.99637902,192.4,192.34,2.71]
[1761401833884,4.82155252,192.44,192.34,2.71]
[1761401834071,3.99620138,192.43,192.34,2.71]
[1761401834276,3.99620138,192.42,192.34,2.71]
[1761401834477,3.99620138,192.41,192.34,2.71]
[1761401834672,3.99620138,192.4,192.34,2.71]
[1761401834887,4.82155252,192.44,192.34,2.71]
[1761401835079,3.99603221,192.43,192.34,2.71]
[1761401835279,3.99603221,192.42,192.34,2.71]
[1761401835482,3.99603221,192.41,192.34,2.71]
[1761401835783,3.99603221,192.4,192.34,2.71]
[1761401835985,4.82155252,192.44,192.34,2.71]
[1761401836284,3.99587001,192.43,192.34,2.71]
[1761401836585,3.99587001,192.42,192.34,2.71]
[1761401836784,3.99587001,192.41,192.34,2.71]
[1761401836988,3.99587001,192.4,192.34,2.71]
[1761401837183,4.82155252,192.44,192.34,2.71]
[1761401837375,3.9957937,192.43,192.34,2.71]
[1761401837576,3.9957937,192.42,192.34,2.71]
[1761401837878,3.9957937,192.41,192.34,2.71]
[1761401838080,3.9957937,192.4,192.34,2.71]
[1761401838281,4.82155252,192.44,192.34,2.71]
[1761401838487,3.99667464,192.43,192.34,2.71]
[1761401838689,3.99667464,192.42,192.34,2.71]
[1761401838890,4.82155252,192.44,192.34,2.71]
[1761401838891,3.99667464,192.41,192.34,2.71]
[1761401839188,3.99667464,192.4,192.34,2.71]
[1761401839389,3.99667464,192.39,192.34,2.71]
[1761401839598,4.01795716,192.38,192.34,2.71]
[1761401839794,4.82155252,192.43,192.34,2.71]
[1761401839978,4.01799438,192.42,192.34,2.71]
[1761401840178,4.01799438,192.41,192.34,2.71]
[1761401840392,4.01799438,192.4,192.34,2.71]
[1761401840592,4.01799438,192.39,192.34,2.71]
[1761401840888,4.01799438,192.38,192.34,2.71]
[1761401841088,4.82155252,192.42,192.34,2.71]
[1761401841278,4.0182081,192.41,192.34,2.71]
[1761401841483,4.0182081,192.4,192.34,2.71]
[1761401841683,4.0182081,192.39,192.34,2.71]
[1761401841883,4.0182081,192.38,192.34,2.71]
[1761401842098,4.0182081,192.37,192.34,2.71]
[1761401842280,4.82155252,192.42,192.34,2.71]
[1761401842585,4.01859389,192.41,192.34,2.71]
[1761401842786,4.01859389,192.4,192.34,2.71]
[1761401842984,4.01859389,192.39,192.34,2.71]
[1761401843189,4.01859389,192.38,192.34,2.71]
[1761401843491,4.01859389,192.37,192.34,2.71]
[1761401843694,4.82155252,192.42,192.34,2.71]
[1761401843892,4.01866476,192.41,192.34,2.71]
[1761401844082,4.01866476,192.4,192.34,2.71]
[1761401844282,4.01866476,192.39,192.34,2.71]
[1761401844483,4.01866476,192.38,192.34,2.71]
[1761401844689,4.01866476,192.37,192.34,2.71]
[1761401844885,4.82155252,192.41,192.34,2.71]
[1761401845090,4.01880705,192.4,192.34,2.71]
[1761401845291,4.01880705,192.39,192.34,2.71]
[1761401845489,4.01880705,192.38,192.34,2.71]
[1761401845684,4.01880705,192.37,192.34,2.71]
[1761401845890,4.82155252,192.41,192.34,2.71]
[1761401846090,4.01902619,192.4,192.34,2.71]
[1761401846291,4.01902619,192.39,192.34,2.71]
[1761401846486,4.01902619,192.38,192.34,2.71]
[1761401846686,4.01902619,192.37,192.34,2.71]
[1761401846982,4.82155252,192.41,192.34,2.71]
[1761401847282,4.01932254,192.4,192.34,2.71]
[1761401847586,4.01932254,192.39,192.34,2.71]
[1761401847787,4.01932254,192.38,192.34,2.71]
[1761401847988,4.01932254,192.37,192.34,2.71]
[1761401848188,4.82155252,192.41,192.34,2.71]
[1761401848394,4.02018616,192.4,192.34,2.71]
[1761401848597,4.02018616,192.39,192.34,2.71]
[1761401848800,4.02018616,192.38,192.34,2.71]
[1761401848994,4.02018616,192.37,192.34,2.71]
[1761401849210,9.67040771,192.46,192.27,125.0]
[1761401849211,4.82155252,192.46,192.36,2.71]
[1761401849403,4.82155252,192.47,192.41,2.71]
[1761401849608,4.82155252,192.5,192.41,2.71]
[1761401851204,4.82155252,192.51,192.41,2.71]
[1761401853707,7.3598541,192.53,192.41,2.71]
[1761401853708,4.82155252,192.53,192.41,2.71]
[1761401854508,4.82155252,192.54,192.41,2.71]
[1761401858113,4.82155252,192.55,192.41,2.71]
[1761401859503,4.82155252,192.54,192.41,2.71]
[1761401859816,4.82155252,192.55,192.41,2.71]
[1761401861111,4.00804486,192.54,192.41,2.71]
[1761401861313,4.00804486,192.53,192.41,2.71]
[1761401861511,4.00804486,192.52,192.41,2.71]
[1761401861716,4.00804486,192.55,192.41,2.71]
[1761401862009,4.00804486,192.54,192.41,2.71]
[1761401862210,4.00804486,192.53,192.41,2.71]
[1761401862410,4.00804486,192.52,192.41,2.71]
[1761401862619,4.00804486,192.55,192.41,2.71]
[1761401862816,4.00804486,192.54,192.41,2.71]
[1761401863118,4.00804486,192.53,192.41,2.71]
[1761401863321,4.00804486,192.52,192.41,2.71]
[1761401863519,4.00804486,192.56,192.41,2.71]
[1761401863713,4.00804486,192.55,192.41,2.71]
[1761401864020,4.00804486,192.54,192.41,2.71]
[1761401864210,4.00804486,192.53,192.41,2.71]
[1761401864414,4.00804486,192.56,192.41,2.71]
[1761401864614,4.00804486,192.55,192.41,2.71]
[1761401864819,4.00804486,192.54,192.41,2.71]
[1761401865019,4.00804486,192.53,192.41,2.71]
[1761401865221,4.00804486,192.56,192.41,2.71]
[1761401865420,4.00804486,192.55,192.41,2.71]
[1761401865621,4.00804486,192.54,192.41,2.71]
[1761401865818,4.00804486,192.53,192.41,2.71]
[1761401866016,4.00804486,192.56,192.41,2.71]
[1761401866217,4.82155252,192.57,192.41,2.71]
[1761401866218,4.00804486,192.55,192.41,2.71]
[1761401866418,4.00804486,192.54,192.41,2.71]
[1761401866614,4.00804486,192.53,192.41,2.71]